fUSD/lending_fUSD_20251229
["ID","MTS","AMOUNT","RATE_DAILY","PERIOD"]
[400015216,1767019843203,-500.0,0.00042832,120]
[400015218,1767019843212,-500.0,0.00042832,120]
[400015220,1767019843221,-500.0,0.00042832,120]
[400015222,1767019843230,-500.0,0.00042832,120]
[400015226,1767019843240,-500.0,0.00042832,120]
[400015230,1767019843249,-500.0,0.00042832,120]
[400015234,1767019843258,-500.0,0.00042832,120]
[400015238,1767019843269,-500.0,0.00042832,120]
[400015243,1767019843278,-500.0,0.00042832,120]
[400015246,1767019843287,-500.0,0.00042832,120]
[400015248,1767019843297,-500.0,0.00042832,120]
[400015250,1767019843306,-500.0,0.00042832,120]
[400015253,1767019843316,-500.0,0.00042832,120]
[400015255,1767019843326,-500.0,0.00042832,120]
[400015256,1767019843336,-500.0,0.00042832,120]
[400015259,1767019843347,-500.0,0.00042832,120]
[400015260,1767019843356,-500.0,0.00042832,120]
[400015262,1767019843366,-500.0,0.00042832,120]
[400015264,1767019843375,-500.0,0.00042832,120]
[400015266,1767019843384,-500.0,0.00042832,120]
[400015268,1767019843393,-122.69166257,0.00042832,120]
[400015272,1767019843415,-377.30833743,0.00042832,120]
[400015274,1767019843425,-500.0,0.00042832,120]
[400015276,1767019843434,-500.0,0.00042832,120]
[400015278,1767019843444,-500.0,0.00042832,120]
[400015280,1767019843453,-500.0,0.00042832,120]
[400015282,1767019843462,-500.0,0.00042832,120]
[400015284,1767019843472,-500.0,0.00042832,120]
[400015286,1767019843482,-500.0,0.00042832,120]
[400015288,1767019843491,-500.0,0.00042832,120]
[400015290,1767019843501,-500.0,0.00042832,120]
[400015292,1767019843510,-500.0,0.00042832,120]
[400015294,1767019843520,-500.0,0.00042832,120]
[400015296,1767019843529,-500.0,0.00042832,120]
[400015298,1767019843538,-500.0,0.00042832,120]
[400015300,1767019843548,-500.0,0.00042832,120]
[400015302,1767019843557,-682.0,0.00042832,120]
[400015304,1767019843567,-500.0,0.00042832,120]
[400015306,1767019843576,-500.0,0.00042832,120]
[400015308,1767019843585,-893.0,0.00042832,120]
[400015310,1767019843594,-500.0,0.00042832,120]
[400015312,1767019843604,-500.0,0.00042832,120]
[400015314,1767019843614,-500.0,0.00042832,120]
[400015316,1767019843623,-500.0,0.00042832,120]
[400015318,1767019843633,-500.0,0.00042832,120]
[400015320,1767019843642,-500.0,0.00042832,120]
[400015322,1767019843652,-500.0,0.00042832,120]
[400015324,1767019843662,-426.47098991,0.00042832,120]
[400015327,1767019843675,-73.52901009,0.00042832,120]
[400015329,1767019843684,-500.0,0.00042832,120]
[400015331,1767019843693,-500.0,0.00042832,120]
[400015333,1767019843702,-500.0,0.00042832,120]
[400015335,1767019843712,-500.0,0.00042832,120]
[400015337,1767019843722,-500.0,0.00042832,120]
[400015339,1767019843731,-500.0,0.00042832,120]
[400015341,1767019843741,-500.0,0.00042832,120]
[400015343,1767019843750,-500.0,0.00042832,120]
[400015345,1767019843760,-500.0,0.00042832,120]
[400015347,1767019843770,-500.0,0.00042832,120]
[400015349,1767019843779,-357.89455596,0.00042832,120]
[400015351,1767019843791,-142.10544404,0.00042832,120]
[400015353,1767019843801,-500.0,0.00042832,120]
[400015355,1767019843810,-48.9977272,0.00042832,120]
[400015358,1767019843822,-451.0022728,0.00042832,120]
[400015360,1767019843831,-500.0,0.00042832,120]
[400015362,1767019843840,-359.89695064,0.00042832,120]
[400015364,1767019843852,-140.10304936,0.00042832,120]
[400015366,1767019843861,-500.0,0.00042832,120]
[400015368,1767019843871,-205.05505908,0.00042832,120]
[400015370,1767019843883,-294.94494092,0.00042832,120]
[400015372,1767019843893,-500.0,0.00042832,120]
[400015374,1767019843903,-500.0,0.00042832,120]
[400015376,1767019843916,-500.0,0.00042832,120]
[400015378,1767019843928,-500.0,0.00042832,120]
[400015380,1767019843937,-500.0,0.00042832,120]
[400015382,1767019843946,-500.0,0.00042832,120]
[400015384,1767019843956,-500.0,0.00042832,120]
[400015386,1767019843967,-500.0,0.00042832,120]
[400015388,1767019843976,-500.0,0.00042832,120]
[400015390,1767019843985,-439.21891346,0.00042832,120]
[400015392,1767019843999,-60.78108654,0.00042832,120]
[400015394,1767019844008,-500.0,0.00042832,120]
[400015396,1767019844018,-500.0,0.00042832,120]
[400015398,1767019844027,-500.0,0.00042832,120]
[400015400,1767019844035,-500.0,0.00042832,120]
[400015402,1767019844044,-500.0,0.00042832,120]
[400015404,1767019844053,-500.0,0.00042832,120]
[400015406,1767019844063,-500.0,0.00042832,120]
[400015408,1767019844072,-500.0,0.00042832,120]
[400015410,1767019844081,-500.0,0.00042832,120]
[400015412,1767019844091,-187.28332572,0.00042832,120]
[400015414,1767019844103,-312.71667428,0.00042832,120]
[400015417,1767019844113,-444.04332572,0.00042832,120]
[400015419,1767019844124,-55.95667428,0.00042832,120]
[400015421,1767019844137,-280.10415788,0.00042832,120]
[400015423,1767019844149,-219.89584212,0.00042832,120]
[400015426,1767019844160,-500.0,0.00042832,120]
[400015428,1767019844171,-500.0,0.00042832,120]
[400015430,1767019844180,-500.0,0.00042832,120]
[400015432,1767019844189,-500.0,0.00042832,120]
[400015456,1767019844410,-500.0,0.00042832,120]
[400015458,1767019844420,-358.21446016,0.00042832,120]
[400015460,1767019844431,-141.78553984,0.00042832,120]
[400015462,1767019844441,-149.48343992,0.00042832,120]
[400015464,1767019844453,-350.51656008,0.00042832,120]
[400015466,1767019844462,-500.0,0.00042832,120]
[400015468,1767019844471,-29.66343992,0.00042832,120]
[400015473,1767019844505,-470.33656008,0.00042832,120]
[400015475,1767019844514,-500.0,0.00042832,120]
[400015477,1767019844523,-500.0,0.00042832,120]
[400015479,1767019844535,-500.0,0.00042832,120]
[400015481,1767019844544,-500.0,0.00042832,120]
[400015483,1767019844554,-500.0,0.00042832,120]
[400015485,1767019844563,-500.0,0.00042832,120]
[400015487,1767019844572,-500.0,0.00042832,120]
[400015489,1767019844582,-500.0,0.00042832,120]
[400015491,1767019844591,-500.0,0.00042832,120]
[400015493,1767019844601,-500.0,0.00042832,120]
[400015495,1767019844610,-500.0,0.00042832,120]
[400015497,1767019844619,-500.0,0.00042832,120]
[400015499,1767019844629,-500.0,0.00042832,120]
[400015501,1767019844638,-500.0,0.00042832,120]
[400015503,1767019844648,-500.0,0.00042832,120]
[400015505,1767019844658,-500.0,0.00042832,120]
[400015507,1767019844668,-500.0,0.00042832,120]
[400015509,1767019844677,-500.0,0.00042832,120]
[400015511,1767019844687,-500.0,0.00042832,120]
[400015513,1767019844696,-500.0,0.00042832,120]
[400015515,1767019844705,-500.0,0.00042832,120]
[400015517,1767019844714,-500.0,0.00042832,120]
[400015519,1767019844724,-500.0,0.00042832,120]
[400015521,1767019844735,-500.0,0.00042832,120]
[400015523,1767019844745,-500.0,0.00042832,120]
[400015525,1767019844754,-500.0,0.00042832,120]
[400015527,1767019844763,-500.0,0.00042832,120]
[400015529,1767019844772,-500.0,0.00042832,120]
[400015531,1767019844782,-500.0,0.00042832,120]
[400015534,1767019844791,-500.0,0.00042832,120]
[400015536,1767019844801,-500.0,0.00042832,120]
[400015537,1767019844810,-500.0,0.00042832,120]
[400015539,1767019844820,-500.0,0.00042832,120]
[400015541,1767019844828,-500.0,0.00042832,120]
[400015543,1767019844837,-500.0,0.00042832,120]
[400015546,1767019844847,-500.0,0.00042832,120]
[400015548,1767019844857,-500.0,0.00042832,120]
[400015550,1767019844865,-500.0,0.00042832,120]
[400015552,1767019844875,-500.0,0.00042832,120]
[400015554,1767019844884,-500.0,0.00042832,120]
[400015556,1767019844893,-500.0,0.00042832,120]
[400015558,1767019844902,-500.0,0.00042832,120]
[400015560,1767019844913,-500.0,0.00042832,120]
[400015562,1767019844927,-500.0,0.00042832,120]
[400015564,1767019844936,-500.0,0.00042832,120]
[400015566,1767019844946,-500.0,0.00042832,120]
[400015568,1767019844956,-500.0,0.00042832,120]
[400015570,1767019844967,-500.0,0.00042832,120]
[400015572,1767019844976,-500.0,0.00042832,120]
[400015574,1767019844986,-500.0,0.00042832,120]
[400015576,1767019844997,-500.0,0.00042832,120]
[400015578,1767019845007,-500.0,0.00042832,120]
[400015580,1767019845016,-500.0,0.00042832,120]
[400015582,1767019845026,-500.0,0.00042832,120]
[400015584,1767019845036,-500.0,0.00042832,120]
[400015586,1767019845045,-500.0,0.00042832,120]
[400015588,1767019845055,-500.0,0.00042832,120]
[400015590,1767019845065,-500.0,0.00042832,120]
[400015592,1767019845075,-500.0,0.00042832,120]
[400015594,1767019845084,-500.0,0.00042832,120]
[400015596,1767019845094,-500.0,0.00042832,120]
[400015598,1767019845103,-500.0,0.00042832,120]
[400015600,1767019845112,-500.0,0.00042832,120]
[400015602,1767019845122,-500.0,0.00042832,120]
[400015604,1767019845131,-500.0,0.00042832,120]
[400015606,1767019845141,-500.0,0.00042832,120]
[400015608,1767019845150,-500.0,0.00042832,120]
[400015610,1767019845159,-500.0,0.00042832,120]
[400015612,1767019845169,-500.0,0.00042832,120]
[400015614,1767019845178,-500.0,0.00042832,120]
[400015616,1767019845187,-500.0,0.00042832,120]
[400015618,1767019845196,-500.0,0.00042832,120]
[400015621,1767019845206,-500.0,0.00042832,120]
[400015623,1767019845215,-500.0,0.00042832,120]
[400015625,1767019845224,-500.0,0.00042832,120]
[400015626,1767019845234,-500.0,0.00042832,120]
[400015628,1767019845243,-500.0,0.00042832,120]
[400015630,1767019845252,-500.0,0.00042832,120]
[400015633,1767019845264,-500.0,0.00042832,120]
[400015635,1767019845274,-500.0,0.00042832,120]
[400015637,1767019845283,-500.0,0.00042832,120]
[400015639,1767019845293,-500.0,0.00042832,120]
[400015640,1767019845302,-500.0,0.00042832,120]
[400015643,1767019845312,-500.0,0.00042832,120]
[400015645,1767019845321,-500.0,0.00042832,120]
[400015647,1767019845331,-500.0,0.00042832,120]
[400015648,1767019845340,-500.0,0.00042832,120]
[400015651,1767019845349,-500.0,0.00042832,120]
[400015654,1767019845358,-500.0,0.00042832,120]
[400015657,1767019845367,-500.0,0.00042832,120]
[400015660,1767019845376,-500.0,0.00042832,120]
[400015665,1767019845386,-500.0,0.00042832,120]
[400015668,1767019845395,-500.0,0.00042832,120]
[400015670,1767019845405,-500.0,0.00042832,120]
[400015672,1767019845416,-500.0,0.00042832,120]
[400015674,1767019845425,-500.0,0.00042832,120]
[400015676,1767019845434,-500.0,0.00042832,120]
[400015678,1767019845444,-500.0,0.00042832,120]
[400015680,1767019845454,-500.0,0.00042832,120]
[400015682,1767019845463,-500.0,0.00042832,120]
[400015684,1767019845472,-500.0,0.00042832,120]
[400015686,1767019845482,-500.0,0.00042832,120]
[400015688,1767019845492,-500.0,0.00042832,120]
[400015690,1767019845501,-500.0,0.00042832,120]
[400015692,1767019845512,-500.0,0.00042832,120]
[400015694,1767019845521,-500.0,0.00042832,120]
[400015696,1767019845530,-500.0,0.00042832,120]
[400015698,1767019845540,-500.0,0.00042832,120]
[400015700,1767019845549,-500.0,0.00042832,120]
[400015702,1767019845559,-500.0,0.00042832,120]
[400015704,1767019845568,-500.0,0.00042832,120]
[400015706,1767019845578,-500.0,0.00042832,120]
[400015709,1767019845587,-500.0,0.00042832,120]
[400015710,1767019845596,-500.0,0.00042832,120]
[400015712,1767019845607,-500.0,0.00042832,120]
[400015715,1767019845617,-500.0,0.00042832,120]
[400015717,1767019845626,-500.0,0.00042832,120]
[400015719,1767019845636,-500.0,0.00042832,120]
[400015721,1767019845645,-500.0,0.00042832,120]
[400015723,1767019845655,-500.0,0.00042832,120]
[400015725,1767019845666,-500.0,0.00042832,120]
[400015726,1767019845676,-500.0,0.00042832,120]
[400015728,1767019845685,-500.0,0.00042832,120]
[400015731,1767019845695,-500.0,0.00042832,120]
[400015732,1767019845704,-500.0,0.00042832,120]
[400015735,1767019845715,-500.0,0.00042832,120]
[400015737,1767019845725,-500.0,0.00042832,120]
[400015739,1767019845734,-500.0,0.00042832,120]
[400015741,1767019845743,-500.0,0.00042832,120]
[400015742,1767019845752,-500.0,0.00042832,120]
[400015744,1767019845761,-500.0,0.00042832,120]
[400015746,1767019845772,-500.0,0.00042832,120]
[400015749,1767019845782,-500.0,0.00042832,120]
[400015751,1767019845791,-500.0,0.00042832,120]
[400015753,1767019845800,-500.0,0.00042832,120]
[400015754,1767019845809,-500.0,0.00042832,120]
[400015756,1767019845819,-500.0,0.00042832,120]
[400015758,1767019845828,-500.0,0.00042832,120]
[400015760,1767019845837,-500.0,0.00042832,120]
[400015762,1767019845847,-500.0,0.00042832,120]
[400015764,1767019845856,-500.0,0.00042832,120]
[400015766,1767019845866,-500.0,0.00042832,120]
[400015768,1767019845875,-500.0,0.00042832,120]
[400015770,1767019845885,-500.0,0.00042832,120]
[400015773,1767019845895,-500.0,0.00042833,60]
[400015775,1767019845904,-151.0,0.00042833,7]
[400015777,1767019845915,-164.025428,0.00042833,120]
[400015779,1767019845927,-6487.73406353,0.00042833,2]
[400015781,1767019845936,-205.031785,0.00042835,120]
[400015783,1767019845946,-247.57713676,0.00042835,31]
[400015785,1767019845956,-200061.11273608,0.00042835,27]
[400015787,1767019845965,-1141868.96833872,0.00042836,7]
[400015789,1767019845978,-1417.67063,0.00042836,7]
[400015791,1767019845989,-1573.28442931,0.00042836,7]
[400015793,1767019846003,-9980.43005344,0.00042836,7]
[400015799,1767019846049,-500.0,0.00042832,120]
[400015801,1767019846059,-500.0,0.00042832,120]
[400015804,1767019846068,-247300.55589445,0.00042836,7]
[400015806,1767019846084,-489.68479778,0.00042832,120]
[400015808,1767019846095,-10.31520222,0.00042832,120]
[400015810,1767019846105,-935.57953024,0.00042836,7]
[400015813,1767019846115,-352360.0,0.00042836,7]
[400015815,1767019846127,-400.0,0.00042836,7]
[400016199,1767020185203,1602.19477327,0.00014254,5]
[400016200,1767020317944,153.07279656,0.00030137,120]
[400016245,1767021031725,-350.71,0.00013699,2]
[400016246,1767021031734,-232.253,0.00014996,2]
[400016247,1767021031743,-199.80557672,0.00015201,2]
[400016248,1767021031755,-100.19442328,0.00015201,2]
[400016249,1767021031764,-1322.44457246,0.00015202,2]
[400016250,1767021031775,-457.72548452,0.00015202,2]
[400016251,1767021031794,-153662.51296951,0.00015202,2]
[400016253,1767021031996,-426.83436047,0.00015202,2]
[400016255,1767021032007,-10741.06680806,0.00015202,2]
[400016258,1767021032018,-1349.61288932,0.00015202,2]
[400016260,1767021032029,-4201.65523545,0.00015202,2]
[400016289,1767021037796,-500.0,0.00015201,2]
[400016290,1767021037806,-500.0,0.00015201,2]
[400016291,1767021037815,-500.0,0.00015201,2]
[400016292,1767021037825,-500.0,0.00015201,2]
[400016293,1767021037835,-500.0,0.00015201,2]
[400016294,1767021037844,-500.0,0.00015201,2]
[400016295,1767021037854,-500.0,0.00015201,2]
[400016296,1767021037863,-500.0,0.00015201,2]
[400016297,1767021037873,-224.26807396,0.00015201,2]
[400016298,1767021037882,-15620.97320649,0.00015202,2]
[400016299,1767021037919,-5778.20325848,0.00015202,2]
[400016300,1767021038008,-3783.22518022,0.00015202,2]
[400016301,1767021038020,-9453.3401842,0.00015202,2]
[400016302,1767021038031,-149923.86574568,0.00015202,2]
[400016303,1767021038043,-923.86730834,0.00015202,2]
[400016304,1767021038055,-7635.69737184,0.00015202,2]
[400016305,1767021038067,-8783.41999944,0.00015202,2]
[400016306,1767021038078,-13861.72199951,0.00015202,2]
[400016307,1767021038090,-480.46187382,0.00015202,2]
[400016347,1767021039820,-7922.28927493,0.00015202,2]
[400016348,1767021039831,-523.34287504,0.00015202,2]
[400016349,1767021039842,-134400.09678827,0.00015202,2]
[400016350,1767021039853,-427.39638274,0.00015202,2]
[400016351,1767021040290,-763.45759774,0.00015202,2]
[400016352,1767021040301,-356.68236483,0.00015202,2]
[400016353,1767021040312,-644.38,0.00015202,2]
[400016354,1767021040354,-396.71618048,0.00015202,2]
[400016364,1767021043997,-345.69,0.00015202,2]
[400016366,1767021044065,-5559.86373034,0.00015202,2]
[400016367,1767021044129,-11486.79525493,0.00015202,2]
[400016368,1767021044140,-371.01156501,0.00015202,2]
[400016369,1767021044202,-8344.33608363,0.00015202,2]
[400016370,1767021044213,-440051.31345425,0.00015202,2]
[400016371,1767021044222,-257.51,0.00015301,2]
[400016372,1767021044231,-257.51,0.00015575,2]
[400016373,1767021044241,-257.51,0.00015849,2]
[400016374,1767021044250,-257.51,0.00016123,2]
[400016375,1767021044259,-257.51,0.00016397,2]
[400016376,1767021044269,-151.0,0.00017752,2]
[400016377,1767021044278,-151.0,0.00017752,2]
[400016378,1767021044287,-151.0,0.00017869,2]
[400016379,1767021044296,-151.0,0.00017869,2]
[400016380,1767021044305,-250.0,0.000181,2]
[400016381,1767021044315,-350.71,0.00020187,2]
[400016382,1767021044324,-350.71,0.00026676,2]
[400016383,1767021044334,-150.098,0.00027135,2]
[400016384,1767021044344,-150.114,0.00027135,2]
[400016385,1767021044353,-150.065,0.00027135,2]
[400016386,1767021044369,-150.0,0.00027135,2]
[400016387,1767021044378,-6539.0,0.00027135,2]
[400016388,1767021044387,-3026.0,0.00027177,2]
[400016389,1767021044397,-161.38600183,0.0003,5]
[400016390,1767021044408,-3077.94,0.00030066,2]
[400016391,1767021044418,-150.0,0.00030135,2]
[400016392,1767021044428,-6539.0,0.00030135,2]
[400016393,1767021044437,-373.6,0.00030137,7]
[400016394,1767021044446,-351.0,0.00030137,4]
[400016395,1767021044455,-5627.21,0.00030435,2]
[400016396,1767021044465,-3240.0,0.00032852,120]
[400016397,1767021044474,-536.501051,0.00033,8]
[400016398,1767021044483,-150.0,0.00033135,2]
[400016399,1767021044492,-6539.0,0.00033135,2]
[400016400,1767021044501,-350.71,0.00033165,2]
[400016401,1767021044510,-6539.0,0.00036135,2]
[400016402,1767021044519,-4391.02,0.00036175,2]
[400016403,1767021044529,-200.0,0.0003667,2]
[400016404,1767021044538,-300.0,0.00037638,2]
[400016405,1767021044547,-1000.0,0.00038121,2]
[400016406,1767021044556,-560.4,0.00038356,36]
[400016407,1767021044565,-526.5,0.00038356,27]
[400016408,1767021044574,-500.0,0.00038549,2]
[400016409,1767021044583,-595.39568782,0.0003856,2]
[400016410,1767021044592,-364.18164659,0.0003856,2]
[400016411,1767021044601,-577.5673783,0.0003856,2]
[400016412,1767021044610,-1321.648778,0.0003856,2]
[400016413,1767021044619,-595.39568782,0.0003856,2]
[400016414,1767021044628,-364.18164659,0.0003856,2]
[400016415,1767021044637,-577.5673783,0.0003856,2]
[400016416,1767021044646,-998.49414534,0.0003856,2]
[400016417,1767021044657,-237.17,0.00038572,120]
[400016418,1767021044665,-15049.62,0.00038573,2]
[400016419,1767021044675,-232.254,0.00038747,52]
[400016420,1767021044684,-37852.80017405,0.00038841,2]
[400016421,1767021044696,-4945.62982595,0.00038841,2]
[400016422,1767021044705,-6539.0,0.00039135,2]
[400016423,1767021044714,-1000.0,0.00039551,2]
[400016424,1767021044723,-350.71,0.00039654,2]
[400016425,1767021044732,-300.0,0.0004,120]
[400016426,1767021044741,-1500.0,0.00040131,120]
[400016427,1767021044751,-900.0,0.00040244,2]
[400016428,1767021044760,-1068.07,0.00040481,120]
[400016429,1767021044769,-250.839,0.000408,60]
[400016430,1767021044778,-250.839,0.000408,60]
[400016431,1767021044787,-250.83,0.000408,60]
[400016432,1767021044796,-1000.0,0.00040867,2]
[400016433,1767021044805,-1000.0,0.0004098,2]
[400016434,1767021044814,-459.63419303,0.00041095,120]
[400016435,1767021044823,-292.0763353,0.00041096,2]
[400016436,1767021044833,-152.0,0.00041169,3]
[400016437,1767021044842,-500.0,0.00041192,60]
[400016438,1767021044851,-500.0,0.00041192,60]
[400016439,1767021044860,-368.0,0.00041372,30]
[400016440,1767021044869,-200.0,0.00041405,120]
[400016441,1767021044878,-900.0,0.00041614,2]
[400016442,1767021044887,-5000.0,0.00041793,120]
[400016443,1767021044897,-368.0,0.00041798,30]
[400016444,1767021044909,-3492.427,0.00042135,2]
[400016445,1767021044918,-368.0,0.00042225,30]
[400016446,1767021044927,-500.0,0.00042288,60]
[400016447,1767021044937,-500.0,0.00042288,60]
[400016448,1767021044946,-4503.28537,0.000424,13]
[400016449,1767021044956,-4503.28536,0.000424,13]
[400016450,1767021044965,-4503.28537,0.000424,13]
[400016451,1767021044974,-4503.28537,0.000424,13]
[400016452,1767021044983,-4503.28537,0.000424,13]
[400016453,1767021044993,-1000.0,0.0004241,2]
[400016454,1767021045002,-368.0,0.00042651,30]
[400016455,1767021045012,-293.90223746,0.00042731,2]
[400016456,1767021045021,-217.76948792,0.00042731,120]
[400016457,1767021045030,-500.0,0.00042736,30]
[400016458,1767021045040,-500.0,0.00042736,30]
[400016459,1767021045049,-160.0948112,0.00042797,113]
[400016460,1767021045058,-253.0,0.000428,40]
[400016461,1767021045068,-1005.0,0.000428,120]
[400016462,1767021045077,-151.0,0.00042828,120]
[400016463,1767021045087,-431.19447021,0.0004283,31]
[400016464,1767021045096,-152.15281277,0.0004283,31]
[400016465,1767021045106,-447.95631803,0.0004283,15]
[400016466,1767021045117,-417.45572526,0.0004283,31]
[400016467,1767021045126,-500.0,0.0004283,31]
[400016468,1767021045136,-506.12043048,0.0004283,31]
[400016469,1767021045146,-413.80756377,0.0004283,31]
[400016470,1767021045157,-355.02322979,0.0004283,31]
[400016471,1767021045166,-100030.55636805,0.00042831,27]
[400016472,1767021045175,-483664.96257221,0.00042831,7]
[400016474,1767021045922,-13716.2766494,0.00042831,7]
[400016475,1767021045992,-761.86263737,0.00042831,7]
[400016483,1767021061900,300.0,0.00016722,120]
[400016484,1767021062280,300.0,0.00021079,120]
[400016485,1767021063184,195.0,0.00016722,120]
[400016486,1767021063292,195.0,0.00021079,120]
[400016487,1767021064176,600.0,0.00016722,120]
[400016488,1767021064308,600.0,0.00021079,120]
[400016489,1767021065999,200.0,0.00016722,120]
[400016490,1767021066100,200.0,0.00021079,120]
[400016491,1767021069106,2500.0,0.00016722,120]
[400016492,1767021069226,2500.0,0.00021079,120]
[400016509,1767021869956,550.0,0.00030137,120]
[400016511,1767021960997,187.58096103,8e-05,2]
[400016512,1767021961021,3004.03564809,8e-05,2]
[400016532,1767022119520,6542.64984483,0.0001,2]
[400016546,1767022231873,-216.77,0.00014898,2]
[400016547,1767022231884,-300.0,0.00014904,2]
[400016548,1767022231893,-300.0,0.000151,2]
[400016549,1767022231903,-500.0,0.00015101,2]
[400016550,1767022231912,-441.04408014,0.00015101,2]
[400016551,1767022231924,-58.95591986,0.00015101,2]
[400016552,1767022231933,-257.4268074,0.00015101,2]
[400016554,1767022231944,-500.0,0.00015101,2]
[400016555,1767022231954,-500.0,0.00015101,2]
[400016556,1767022231963,-500.0,0.00015101,2]
[400016557,1767022231972,-500.0,0.00015101,2]
[400016558,1767022231982,-83.61727274,0.00015101,2]
[400016559,1767022231993,-416.38272726,0.00015101,2]
[400016560,1767022232002,-500.0,0.00015101,2]
[400016561,1767022232012,-500.0,0.00015101,2]
[400016562,1767022232021,-500.0,0.00015101,2]
[400016563,1767022232030,-193.26358772,0.00015101,2]
[400016564,1767022232041,-306.73641228,0.00015101,2]
[400016565,1767022232050,-500.0,0.00015101,2]
[400016566,1767022232059,-500.0,0.00015101,2]
[400016567,1767022232068,-500.0,0.00015101,2]
[400016568,1767022232077,-650.0,0.00015101,2]
[400016569,1767022232087,-1831.76733762,0.00015102,2]
[400016570,1767022232096,-19691.06222532,0.00015102,2]
[400016571,1767022232107,-2200.42617285,0.00015102,2]
[400016572,1767022232118,-1650.0,0.00015102,2]
[400016573,1767022232128,-279.26125715,0.00015102,2]
[400016574,1767022232140,-500.0,0.00015102,2]
[400016575,1767022232156,-2455.1720478,0.00015102,2]
[400016576,1767022232167,-16234.94914777,0.00015102,2]
[400016577,1767022232177,-811.64281846,0.00015102,2]
[400016589,1767022237968,-304.0,0.00015102,2]
[400016590,1767022237980,-28358.10237597,0.00015102,2]
[400016591,1767022238073,-252.20002668,0.00015102,2]
[400016592,1767022238084,-500.0,0.00015102,2]
[400016593,1767022238172,-4410.00592094,0.00015102,2]
[400016594,1767022238187,-847.97755342,0.00015102,2]
[400016595,1767022238202,-15801.2485822,0.00015102,2]
[400016596,1767022238228,-706.55591932,0.00015102,2]
[400016621,1767022240072,-12793.96875002,0.00015102,2]
[400016622,1767022240084,-1127.16857088,0.00015102,2]
[400016623,1767022240274,-3745.88,0.00015102,2]
[400016624,1767022240285,-473.93335833,0.00015102,2]
[400016625,1767022240296,-2911.12206947,0.00015102,2]
[400016626,1767022240307,-8729.85355906,0.00015102,2]
[400016628,1767022240318,-922.18333418,0.00015102,2]
[400016630,1767022240329,-420.86114321,0.00015102,2]
[400016632,1767022240340,-3391.7295467,0.00015102,2]
[400016635,1767022240354,-500.0,0.00015102,2]
[400016637,1767022240366,-323.18299053,0.00015102,2]
[400016639,1767022240377,-463.12000351,0.00015102,2]
[400016640,1767022240388,-435.937314,0.00015102,2]
[400016658,1767022244003,-1797.61271401,0.00015102,2]
[400016660,1767022244014,-293.54,0.00015102,2]
[400016661,1767022244025,-358.681,0.00015102,2]
[400016662,1767022244037,-676485.58925321,0.00015102,2]
[400016663,1767022244048,-7156.875753,0.00015102,2]
[400016664,1767022244059,-182666.15659201,0.00015102,2]
[400016665,1767022244069,-170.51288261,0.00015988,2]
[400016666,1767022244078,-5937.21333972,0.00016088,2]
[400016667,1767022244087,-151.0,0.00016281,2]
[400016668,1767022244106,-151.0,0.00016281,2]
[400016669,1767022244118,-300.0,0.00016388,2]
[400016670,1767022244129,-195.0,0.00016388,2]
[400016671,1767022244140,-272.06899131,0.00016388,2]